[Event "Live Chess"]
[Site "Chess.com"]
[Date "2023.05.21"]
[Round "-"]
[White "MartynColebrook"]
[Black "Cimon"]
[Result "1-0"]
[WhiteElo "1302"]
[BlackElo "1832"]
[TimeControl "300"]
[EndTime "6:41:51 PDT"]
[Termination "MartynColebrook won by resignation"]

1. e4 {[%clk 0:04:52.6]} 1... d6 {[%clk 0:04:58.4]} 2. d4 {[%clk 0:04:50.9]}
2... Nf6 {[%clk 0:04:57.2]} 3. Nc3 {[%clk 0:04:48.7]} 3... g6 {[%clk 0:04:55.8]}
4. Bd3 {[%clk 0:04:46.9]} 4... Bg7 {[%clk 0:04:54.4]} 5. Be3 {[%clk 0:04:45]}
5... O-O {[%clk 0:04:52.8]} 6. f4 {[%clk 0:04:43.3]} 6... Nfd7 {[%clk
0:04:46.6]} 7. Nf3 {[%clk 0:04:41.4]} 7... c5 {[%clk 0:04:40.8]} 8. d5 {[%clk
0:04:32.2]} 8... a6 {[%clk 0:04:39.2]} 9. Be2 {[%clk 0:04:21.8]} 9... b5 {[%clk
0:04:36.6]} 10. Qd2 {[%clk 0:04:16.3]} 10... b4 {[%clk 0:04:33]} 11. Nd1 {[%clk
0:04:11]} 11... Nb6 {[%clk 0:04:14.2]} 12. O-O {[%clk 0:04:09]} 12... e6 {[%clk
0:04:10.8]} 13. c3 {[%clk 0:04:06]} 13... a5 {[%clk 0:04:07]} 14. Rc1 {[%clk
0:03:59.3]} 14... exd5 {[%clk 0:04:03.5]} 15. exd5 {[%clk 0:03:53.4]} 15... Bb7
{[%clk 0:03:58.1]} 16. c4 {[%clk 0:03:44.3]} 16... N8d7 {[%clk 0:03:46.3]} 17.
b3 {[%clk 0:03:41.7]} 17... a4 {[%clk 0:03:35.6]} 18. Bd3 {[%clk 0:03:34.4]}
18... axb3 {[%clk 0:03:32.4]} 19. axb3 {[%clk 0:03:32.1]} 19... Nf6 {[%clk
0:03:26.2]} 20. f5 {[%clk 0:03:27]} 20... Re8 {[%clk 0:03:22.2]} 21. fxg6 {[%clk
0:03:20.7]} 21... hxg6 {[%clk 0:03:21]} 22. Bg5 {[%clk 0:03:08.9]} 22... Qd7
{[%clk 0:03:13.9]} 23. Qf4 {[%clk 0:03:02.8]} 23... Nh5 {[%clk 0:03:05.1]} 24.
Qh4 {[%clk 0:02:50.8]} 24... Bh8 {[%clk 0:02:26.7]} 25. g4 {[%clk 0:02:43.5]}
25... Ng7 {[%clk 0:02:25]} 26. Bf6 {[%clk 0:02:16]} 26... Ra3 {[%clk 0:02:16.8]}
27. Ng5 {[%clk 0:02:09.4]} 27... Nh5 {[%clk 0:01:35.6]} 28. gxh5 {[%clk
0:02:03.1]} 28... Bxf6 {[%clk 0:01:31.4]} 29. hxg6 {[%clk 0:01:55.1]} 29... Bxg5
{[%clk 0:01:29]} 30. Qxg5 {[%clk 0:01:51.4]} 30... f6 {[%clk 0:01:06.2]} 31.
Qxf6 {[%clk 0:01:28.1]} 31... Qg4+ {[%clk 0:00:41.1]} 32. Kh1 {[%clk 0:01:23.8]}
1-0

[Event "Live Chess"]
[Site "Chess.com"]
[Date "2023.05.21"]
[Round "-"]
[White "Hussamalhaidar"]
[Black "onemoretime1975"]
[Result "0-1"]
[WhiteElo "1136"]
[BlackElo "1860"]
[TimeControl "300"]
[EndTime "6:42:07 PDT"]
[Termination "onemoretime1975 won - game abandoned"]

1. b3 {[%clk 0:04:58.3]} 1... e5 {[%clk 0:04:57.8]} 2. Bb2 {[%clk 0:04:56.1]}
2... d6 {[%clk 0:04:56]} 3. e3 {[%clk 0:04:53.8]} 3... Nc6 {[%clk 0:04:54.8]} 4.
Nf3 {[%clk 0:04:50.7]} 4... Nf6 {[%clk 0:04:53.2]} 5. c4 {[%clk 0:04:47.8]} 5...
Be7 {[%clk 0:04:47.9]} 6. d3 {[%clk 0:04:45.4]} 6... O-O {[%clk 0:04:45.7]} 7.
Be2 {[%clk 0:04:42.5]} 7... Re8 {[%clk 0:04:28.3]} 8. Nbd2 {[%clk 0:04:41.1]}
8... Bf8 {[%clk 0:04:24.4]} 9. O-O {[%clk 0:04:39.9]} 9... g6 {[%clk 0:04:23.4]}
10. h3 {[%clk 0:04:38.2]} 10... Bg7 {[%clk 0:04:22.1]} 11. d4 {[%clk 0:04:33.2]}
11... exd4 {[%clk 0:04:20.3]} 12. Nxd4 {[%clk 0:04:29.1]} 12... Nxd4 {[%clk
0:04:18.8]} 13. Bxd4 {[%clk 0:04:25.7]} 13... d5 {[%clk 0:04:14.6]} 14. cxd5
{[%clk 0:04:21.5]} 14... Nxd5 {[%clk 0:04:11]} 15. Bxg7 {[%clk 0:04:18.6]} 15...
Kxg7 {[%clk 0:04:09.8]} 16. Bc4 {[%clk 0:04:14.1]} 16... Be6 {[%clk 0:04:07.2]}
17. Nf3 {[%clk 0:04:09.4]} 17... c6 {[%clk 0:03:56.4]} 18. Qd4+ {[%clk
0:04:07.8]} 18... Kg8 {[%clk 0:03:53.4]} 19. Ng5 {[%clk 0:04:05.1]} 19... Qxg5
{[%clk 0:03:48.6]} 20. f4 {[%clk 0:04:00.8]} 20... Qf6 {[%clk 0:03:34.9]} 21.
Bxd5 {[%clk 0:03:56.5]} 21... Qxd4 {[%clk 0:03:33.2]} 22. exd4 {[%clk
0:03:53.8]} 22... Bxd5 {[%clk 0:03:32]} 23. Rf2 {[%clk 0:03:48.9]} 23... f5
{[%clk 0:03:30]} 24. Rc1 {[%clk 0:03:44.1]} 24... Re4 {[%clk 0:03:23.9]} 25. g3
{[%clk 0:03:37.9]} 25... Rae8 {[%clk 0:03:20.5]} 26. Rd2 {[%clk 0:03:33.2]}
26... Re1+ {[%clk 0:03:17.1]} 27. Rxe1 {[%clk 0:03:31.2]} 27... Rxe1+ {[%clk
0:03:15.3]} 28. Kf2 {[%clk 0:03:30.2]} 28... Rh1 {[%clk 0:03:10.7]} 29. Ke3
{[%clk 0:03:23.3]} 29... Rxh3 {[%clk 0:03:06.6]} 30. Rf2 {[%clk 0:03:18.2]}
30... Rxg3+ {[%clk 0:03:05]} 0-1

[Event "Live Chess"]
[Site "Chess.com"]
[Date "2023.05.21"]
[Round "-"]
[White "YrrriKharkiv"]
[Black "McSlash1"]
[Result "1/2-1/2"]
[WhiteElo "2061"]
[BlackElo "1993"]
[TimeControl "300"]
[EndTime "6:42:31 PDT"]
[Termination "Game drawn by repetition"]

1. d4 {[%clk 0:04:46.3]} 1... Nf6 {[%clk 0:04:58.9]} 2. c4 {[%clk 0:04:44.6]}
2... g6 {[%clk 0:04:57.8]} 3. Nc3 {[%clk 0:04:41.9]} 3... d5 {[%clk 0:04:57.5]}
4. Qb3 {[%clk 0:04:40.1]} 4... dxc4 {[%clk 0:04:56.4]} 5. Qxc4 {[%clk
0:04:39.2]} 5... Bg7 {[%clk 0:04:56.3]} 6. e4 {[%clk 0:04:37.9]} 6... O-O {[%clk
0:04:55.7]} 7. Nf3 {[%clk 0:04:36]} 7... Bg4 {[%clk 0:04:54]} 8. Ne5 {[%clk
0:04:29.7]} 8... Be6 {[%clk 0:04:49]} 9. Qd3 {[%clk 0:04:25.1]} 9... Nfd7 {[%clk
0:04:45.8]} 10. Nxd7 {[%clk 0:04:23.8]} 10... Nxd7 {[%clk 0:04:45.7]} 11. Be3
{[%clk 0:04:22.4]} 11... Nb6 {[%clk 0:04:42]} 12. d5 {[%clk 0:04:16.1]} 12...
Bd7 {[%clk 0:04:39.7]} 13. Be2 {[%clk 0:04:12]} 13... c6 {[%clk 0:04:37.3]} 14.
O-O {[%clk 0:04:07.3]} 14... cxd5 {[%clk 0:04:35.6]} 15. exd5 {[%clk 0:04:06.5]}
15... Bf5 {[%clk 0:04:34.2]} 16. Qd2 {[%clk 0:04:03.7]} 16... Qd6 {[%clk
0:04:32.3]} 17. Bd4 {[%clk 0:03:45.2]} 17... Bxd4 {[%clk 0:04:23.9]} 18. Qxd4
{[%clk 0:03:43.5]} 18... e6 {[%clk 0:04:23.1]} 19. Rfd1 {[%clk 0:03:36.5]} 19...
Rfd8 {[%clk 0:04:20]} 20. Bf3 {[%clk 0:03:33.5]} 20... e5 {[%clk 0:04:17.4]} 21.
Qh4 {[%clk 0:03:23.1]} 21... f6 {[%clk 0:04:09.4]} 22. a4 {[%clk 0:02:58]} 22...
a5 {[%clk 0:03:50.7]} 23. Nb5 {[%clk 0:02:54.8]} 23... Qd7 {[%clk 0:03:48.3]}
24. Qxf6 {[%clk 0:02:49.9]} 24... Nxa4 {[%clk 0:03:40.2]} 25. Rxa4 {[%clk
0:02:26.4]} 25... Qxb5 {[%clk 0:03:38.3]} 26. Raa1 {[%clk 0:02:25.9]} 26... e4
{[%clk 0:03:34.5]} 27. Bxe4 {[%clk 0:02:18.2]} 27... Bxe4 {[%clk 0:03:29.1]} 28.
Qe6+ {[%clk 0:02:16.7]} 28... Kg7 {[%clk 0:03:28.1]} 29. Qe5+ {[%clk 0:02:15.1]}
29... Kg8 {[%clk 0:03:26.7]} 30. Qxe4 {[%clk 0:02:14.1]} 30... Re8 {[%clk
0:03:25.1]} 31. Qd4 {[%clk 0:02:13.1]} 31... Rad8 {[%clk 0:03:23]} 32. d6 {[%clk
0:02:12.2]} 32... Re6 {[%clk 0:03:17.5]} 33. Qd5 {[%clk 0:01:43.7]} 33... Qxd5
{[%clk 0:03:15.3]} 34. Rxd5 {[%clk 0:01:43.2]} 34... Rexd6 {[%clk 0:03:14.9]}
35. Rxd6 {[%clk 0:01:40.7]} 35... Rxd6 {[%clk 0:03:14.8]} 36. Kf1 {[%clk
0:01:37.9]} 36... b6 {[%clk 0:03:14.2]} 37. Ke2 {[%clk 0:01:35.9]} 37... Rc6
{[%clk 0:03:12.8]} 38. Kd2 {[%clk 0:01:34.8]} 38... Rf6 {[%clk 0:03:11.1]} 39.
f3 {[%clk 0:01:33.5]} 39... Rd6+ {[%clk 0:03:10.1]} 40. Kc2 {[%clk 0:01:32.4]}
40... Re6 {[%clk 0:03:09.7]} 41. Kd3 {[%clk 0:01:29.5]} 41... Kf7 {[%clk
0:03:07.7]} 42. Rc1 {[%clk 0:01:27]} 42... Rd6+ {[%clk 0:03:07.1]} 43. Ke3
{[%clk 0:01:24.7]} 43... Kf6 {[%clk 0:03:04.5]} 44. h4 {[%clk 0:01:18.6]} 44...
h5 {[%clk 0:03:03.8]} 45. Rc2 {[%clk 0:01:12.8]} 45... Re6+ {[%clk 0:03:00.2]}
46. Kf4 {[%clk 0:01:09.7]} 46... Rd6 {[%clk 0:02:59.1]} 47. g4 {[%clk
0:01:06.7]} 47... hxg4 {[%clk 0:02:57.5]} 48. Kxg4 {[%clk 0:01:02.4]} 48... Rd4+
{[%clk 0:02:48.5]} 49. f4 {[%clk 0:01:00.8]} 49... Rb4 {[%clk 0:02:47.7]} 50.
Re2 {[%clk 0:00:58]} 50... a4 {[%clk 0:02:44.9]} 51. Rd2 {[%clk 0:00:50.8]}
51... b5 {[%clk 0:02:42.9]} 52. Rd6+ {[%clk 0:00:48.1]} 52... Kf7 {[%clk
0:02:42.1]} 53. Rd2 {[%clk 0:00:45.2]} 53... Rb3 {[%clk 0:02:40.3]} 54. h5
{[%clk 0:00:41.2]} 54... gxh5+ {[%clk 0:02:37.6]} 55. Kxh5 {[%clk 0:00:40.5]}
55... Kf6 {[%clk 0:02:37.2]} 56. Kg4 {[%clk 0:00:37.5]} 56... Ke6 {[%clk
0:02:35.3]} 57. f5+ {[%clk 0:00:33.8]} 57... Kf6 {[%clk 0:02:32.7]} 58. Rd6+
{[%clk 0:00:30.1]} 58... Ke5 {[%clk 0:02:30.5]} 59. Re6+ {[%clk 0:00:28.9]}
59... Kd5 {[%clk 0:02:29.4]} 60. Re2 {[%clk 0:00:26.3]} 60... Rb4+ {[%clk
0:02:25.2]} 61. Kg5 {[%clk 0:00:25.2]} 61... Rb3 {[%clk 0:02:16.3]} 62. f6
{[%clk 0:00:24.3]} 62... Rg3+ {[%clk 0:02:15.4]} 63. Kf5 {[%clk 0:00:23.5]}
63... Rg1 {[%clk 0:02:14.7]} 64. Rd2+ {[%clk 0:00:22.2]} 64... Kc6 {[%clk
0:02:13.8]} 65. f7 {[%clk 0:00:21.6]} 65... Rf1+ {[%clk 0:02:13]} 66. Ke6 {[%clk
0:00:21]} 66... b4 {[%clk 0:02:12.1]} 67. Ke7 {[%clk 0:00:20.3]} 67... Re1+
{[%clk 0:02:10.7]} 68. Kf6 {[%clk 0:00:19.3]} 68... Rf1+ {[%clk 0:02:10.1]} 69.
Kg7 {[%clk 0:00:18.8]} 69... Rg1+ {[%clk 0:02:09.1]} 70. Kf6 {[%clk 0:00:18.1]}
70... Rf1+ {[%clk 0:02:08.4]} 71. Kg7 {[%clk 0:00:17.8]} 71... Rg1+ {[%clk
0:02:06.8]} 72. Kf6 {[%clk 0:00:17.4]} 72... Rf1+ {[%clk 0:02:06]} 1/2-1/2

[Event "Live Chess"]
[Site "Chess.com"]
[Date "2023.05.21"]
[Round "-"]
[White "TheSmoulderingMaster"]
[Black "domrobson"]
[Result "0-1"]
[WhiteElo "1660"]
[BlackElo "1767"]
[TimeControl "300"]
[EndTime "6:42:33 PDT"]
[Termination "domrobson won by resignation"]

1. e4 {[%clk 0:04:58.7]} 1... e5 {[%clk 0:04:59.5]} 2. Nf3 {[%clk 0:04:57.4]}
2... Nc6 {[%clk 0:04:58.9]} 3. Bb5 {[%clk 0:04:56.4]} 3... a6 {[%clk 0:04:57.4]}
4. Ba4 {[%clk 0:04:55]} 4... Nf6 {[%clk 0:04:56.5]} 5. O-O {[%clk 0:04:53.7]}
5... Nxe4 {[%clk 0:04:55.6]} 6. d4 {[%clk 0:04:51.7]} 6... b5 {[%clk 0:04:54.2]}
7. Bb3 {[%clk 0:04:50.1]} 7... d5 {[%clk 0:04:53.9]} 8. dxe5 {[%clk 0:04:46.7]}
8... Be6 {[%clk 0:04:52.7]} 9. c3 {[%clk 0:04:45.3]} 9... Bc5 {[%clk 0:04:50.9]}
10. Nbd2 {[%clk 0:04:43.2]} 10... O-O {[%clk 0:04:49.6]} 11. Bc2 {[%clk
0:04:37.1]} 11... Nxf2 {[%clk 0:04:47.6]} 12. Rxf2 {[%clk 0:04:35.6]} 12... f6
{[%clk 0:04:46]} 13. Nb3 {[%clk 0:04:30.1]} 13... Bxf2+ {[%clk 0:04:43.8]} 14.
Kxf2 {[%clk 0:04:29.5]} 14... fxe5 {[%clk 0:04:43]} 15. Kg1 {[%clk 0:04:27.8]}
15... e4 {[%clk 0:04:35]} 16. Ng5 {[%clk 0:04:24.8]} 16... Qf6 {[%clk
0:04:28.6]} 17. Be3 {[%clk 0:04:19.2]} 17... h6 {[%clk 0:04:16.7]} 18. Nxe6
{[%clk 0:04:17.4]} 18... Qxe6 {[%clk 0:04:15]} 19. Qe2 {[%clk 0:04:16.2]} 19...
Rf7 {[%clk 0:04:11.7]} 20. Rd1 {[%clk 0:04:14]} 20... Ne7 {[%clk 0:04:07.8]} 21.
Nc5 {[%clk 0:04:09.5]} 21... Qc8 {[%clk 0:03:58.8]} 22. Bb3 {[%clk 0:04:05.8]}
22... c6 {[%clk 0:03:56.5]} 23. Bd4 {[%clk 0:03:58.4]} 23... Nf5 {[%clk
0:03:48.1]} 24. Be5 {[%clk 0:03:55.5]} 24... Qf8 {[%clk 0:03:41.9]} 25. Rf1
{[%clk 0:03:40]} 25... Qxc5+ {[%clk 0:03:38.6]} 26. Kh1 {[%clk 0:03:37.3]} 26...
Raf8 {[%clk 0:03:33.4]} 27. Bd4 {[%clk 0:03:33.3]} 27... Nxd4 {[%clk 0:03:31.5]}
28. Rxf7 {[%clk 0:03:26.1]} 28... Rxf7 {[%clk 0:03:29.6]} 29. cxd4 {[%clk
0:03:22.2]} 29... Qc1+ {[%clk 0:03:27.2]} 30. Bd1 {[%clk 0:03:19.3]} 30... Qf4
{[%clk 0:03:16.4]} 31. h3 {[%clk 0:03:14.7]} 31... Qf1+ {[%clk 0:03:14.4]} 0-1

[Event "Live Chess"]
[Site "Chess.com"]
[Date "2023.05.21"]
[Round "-"]
[White "JoeRoot66"]
[Black "LL220284LL"]
[Result "0-1"]
[WhiteElo "1894"]
[BlackElo "2288"]
[TimeControl "300"]
[EndTime "6:42:39 PDT"]
[Termination "LL220284LL won by resignation"]

1. e4 {[%clk 0:04:51.4]} 1... c5 {[%clk 0:04:58.2]} 2. c3 {[%clk 0:04:49.8]}
2... Nf6 {[%clk 0:04:55.2]} 3. e5 {[%clk 0:04:48.9]} 3... Nd5 {[%clk 0:04:54.1]}
4. d4 {[%clk 0:04:48.6]} 4... cxd4 {[%clk 0:04:52.3]} 5. Nf3 {[%clk 0:04:48.3]}
5... Nc6 {[%clk 0:04:50.9]} 6. cxd4 {[%clk 0:04:46.3]} 6... d6 {[%clk
0:04:45.3]} 7. Bc4 {[%clk 0:04:45]} 7... dxe5 {[%clk 0:04:42.6]} 8. dxe5 {[%clk
0:04:43.7]} 8... Be6 {[%clk 0:04:38.8]} 9. O-O {[%clk 0:04:37.2]} 9... g6 {[%clk
0:04:37.8]} 10. Qb3 {[%clk 0:04:23.6]} 10... Qb6 {[%clk 0:04:29.6]} 11. Bxd5
{[%clk 0:04:20.8]} 11... Bxd5 {[%clk 0:04:25.3]} 12. Qxd5 {[%clk 0:04:19]} 12...
Rd8 {[%clk 0:04:23.7]} 13. Qb3 {[%clk 0:04:18]} 13... Qc7 {[%clk 0:04:21.9]} 14.
Bf4 {[%clk 0:04:12]} 14... Bg7 {[%clk 0:04:19.8]} 15. Re1 {[%clk 0:04:10.7]}
15... O-O {[%clk 0:04:17.7]} 16. Nc3 {[%clk 0:04:09.5]} 16... Na5 {[%clk
0:04:14.7]} 17. Qc2 {[%clk 0:04:06.2]} 17... Rc8 {[%clk 0:04:12.1]} 18. Bg3
{[%clk 0:04:04.6]} 18... e6 {[%clk 0:04:10.6]} 19. Rad1 {[%clk 0:04:02.3]} 19...
Nc4 {[%clk 0:04:09.6]} 20. b3 {[%clk 0:04:00.2]} 20... Nb6 {[%clk 0:04:08.8]}
21. Rd3 {[%clk 0:03:54.1]} 21... Nd5 {[%clk 0:04:06.8]} 22. Rc1 {[%clk
0:03:48.2]} 22... Nb4 {[%clk 0:04:04.8]} 23. Qd2 {[%clk 0:03:43.4]} 23... Nxd3
{[%clk 0:04:02.3]} 24. Qxd3 {[%clk 0:03:43.3]} 24... Bh6 {[%clk 0:03:56.7]} 25.
Rc2 {[%clk 0:03:40.8]} 25... Rfd8 {[%clk 0:03:54.6]} 26. Nd4 {[%clk 0:03:29.3]}
26... Qb6 {[%clk 0:03:46.4]} 27. Ne4 {[%clk 0:03:23.4]} 27... Rxc2 {[%clk
0:03:42.6]} 28. Nf6+ {[%clk 0:03:16.7]} 28... Kh8 {[%clk 0:03:36.7]} 29. Qxc2
{[%clk 0:03:15.6]} 29... Qxd4 {[%clk 0:03:35.5]} 0-1

[Event "Live Chess"]
[Site "Chess.com"]
[Date "2023.05.21"]
[Round "-"]
[White "tpm07"]
[Black "elephantgerrald"]
[Result "1-0"]
[WhiteElo "1946"]
[BlackElo "677"]
[TimeControl "300"]
[EndTime "6:42:40 PDT"]
[Termination "tpm07 won by checkmate"]

1. e4 {[%clk 0:04:57.4]} 1... e5 {[%clk 0:04:58.4]} 2. Nf3 {[%clk 0:04:56.2]}
2... Nc6 {[%clk 0:04:56.8]} 3. Bb5 {[%clk 0:04:55.6]} 3... f6 {[%clk 0:04:55.4]}
4. Bxc6 {[%clk 0:04:43.2]} 4... bxc6 {[%clk 0:04:53.2]} 5. d4 {[%clk 0:04:36]}
5... Bd6 {[%clk 0:04:45.9]} 6. dxe5 {[%clk 0:04:31.6]} 6... Bxe5 {[%clk
0:04:44.5]} 7. Nxe5 {[%clk 0:04:30.1]} 7... fxe5 {[%clk 0:04:33.9]} 8. Qh5+
{[%clk 0:04:28.5]} 8... g6 {[%clk 0:04:32]} 9. Qxe5+ {[%clk 0:04:26]} 9... Ne7
{[%clk 0:04:27.1]} 10. Qxh8+ {[%clk 0:04:24.1]} 10... Kf7 {[%clk 0:04:25.8]} 11.
Qxd8 {[%clk 0:04:20.4]} 11... Nf5 {[%clk 0:04:22.7]} 12. exf5 {[%clk 0:04:17.5]}
12... Bb7 {[%clk 0:04:20.7]} 13. fxg6+ {[%clk 0:04:14.5]} 13... hxg6 {[%clk
0:04:18.8]} 14. Qxc7 {[%clk 0:04:12.1]} 14... Re8+ {[%clk 0:04:15.9]} 15. Be3
{[%clk 0:04:10]} 15... Ba6 {[%clk 0:04:12.9]} 16. Qxd7+ {[%clk 0:04:01.3]} 16...
Re7 {[%clk 0:04:10.8]} 17. Qxc6 {[%clk 0:03:58.1]} 17... Bc4 {[%clk 0:03:57.6]}
18. Qxc4+ {[%clk 0:03:54.8]} 18... Kg7 {[%clk 0:03:56.4]} 19. Nc3 {[%clk
0:03:50.4]} 19... Rxe3+ {[%clk 0:03:54.9]} 20. fxe3 {[%clk 0:03:48.7]} 20... a6
{[%clk 0:03:53.1]} 21. O-O {[%clk 0:03:47.6]} 21... Kh6 {[%clk 0:03:49.9]} 22.
Rf7 {[%clk 0:03:44.5]} 22... Kg5 {[%clk 0:03:47.2]} 23. Qf4+ {[%clk 0:03:40.4]}
23... Kh5 {[%clk 0:03:44.8]} 24. Rh7# {[%clk 0:03:38.5]} 1-0

[Event "Live Chess"]
[Site "Chess.com"]
[Date "2023.05.21"]
[Round "-"]
[White "wot-not"]
[Black "Duke_of_Bebington"]
[Result "1-0"]
[WhiteElo "1548"]
[BlackElo "1540"]
[TimeControl "300"]
[EndTime "6:42:54 PDT"]
[Termination "wot-not won by resignation"]

1. e4 {[%clk 0:04:51]} 1... e5 {[%clk 0:04:58.7]} 2. f4 {[%clk 0:04:50]} 2...
exf4 {[%clk 0:04:56.7]} 3. Nf3 {[%clk 0:04:48.7]} 3... d5 {[%clk 0:04:53.7]} 4.
e5 {[%clk 0:04:47.3]} 4... d4 {[%clk 0:04:42.2]} 5. Bc4 {[%clk 0:04:18]} 5... g5
{[%clk 0:04:39.2]} 6. d3 {[%clk 0:04:13.4]} 6... g4 {[%clk 0:04:34.2]} 7. O-O
{[%clk 0:04:02.7]} 7... gxf3 {[%clk 0:04:31.9]} 8. Qxf3 {[%clk 0:04:01.6]} 8...
Be6 {[%clk 0:04:25]} 9. Bxe6 {[%clk 0:03:52.4]} 9... fxe6 {[%clk 0:04:24.4]} 10.
Qxf4 {[%clk 0:03:50.5]} 10... Qc8 {[%clk 0:04:21.9]} 11. Qf7+ {[%clk 0:03:42]}
11... Kd8 {[%clk 0:04:19.9]} 12. Qxf8+ {[%clk 0:03:41.3]} 12... Kd7 {[%clk
0:04:18.5]} 13. Qg7+ {[%clk 0:03:39.7]} 13... Ne7 {[%clk 0:04:16.9]} 14. Bg5
{[%clk 0:03:36.7]} 14... Qe8 {[%clk 0:04:15]} 15. Bxe7 {[%clk 0:03:30.9]} 15...
Qxe7 {[%clk 0:04:13.4]} 16. Rf7 {[%clk 0:03:30.6]} 16... Nc6 {[%clk 0:04:10.8]}
17. Rxe7+ {[%clk 0:03:29.5]} 17... Nxe7 {[%clk 0:04:07.2]} 18. Qg4 {[%clk
0:03:13.3]} 18... Nf5 {[%clk 0:04:03.6]} 19. Nd2 {[%clk 0:03:04.5]} 19... Ne3
{[%clk 0:04:01.2]} 20. Qxd4+ {[%clk 0:03:00.8]} 20... Nd5 {[%clk 0:03:58.9]} 21.
c4 {[%clk 0:02:59]} 1-0

[Event "Live Chess"]
[Site "Chess.com"]
[Date "2023.05.21"]
[Round "-"]
[White "shohrehbayat"]
[Black "KeithArkell"]
[Result "0-1"]
[WhiteElo "2042"]
[BlackElo "2487"]
[TimeControl "300"]
[EndTime "6:43:00 PDT"]
[Termination "KeithArkell won by resignation"]

1. e4 {[%clk 0:04:56.3]} 1... c6 {[%clk 0:04:43.2]} 2. d4 {[%clk 0:04:53.7]}
2... d5 {[%clk 0:04:40.9]} 3. exd5 {[%clk 0:04:52.8]} 3... cxd5 {[%clk
0:04:39.5]} 4. Bd3 {[%clk 0:04:51.8]} 4... Nc6 {[%clk 0:04:38]} 5. c3 {[%clk
0:04:48.3]} 5... Nf6 {[%clk 0:04:37.1]} 6. Bf4 {[%clk 0:04:42.2]} 6... Bg4
{[%clk 0:04:35.9]} 7. Qb3 {[%clk 0:04:40.1]} 7... Qd7 {[%clk 0:04:35.1]} 8. Nd2
{[%clk 0:04:38.4]} 8... e6 {[%clk 0:04:34]} 9. Ngf3 {[%clk 0:04:36.5]} 9... Bd6
{[%clk 0:04:31.7]} 10. Bxd6 {[%clk 0:04:30.1]} 10... Qxd6 {[%clk 0:04:30.9]} 11.
Qxb7 {[%clk 0:04:29.3]} 11... Rb8 {[%clk 0:04:26.4]} 12. Qa6 {[%clk 0:04:25.9]}
12... O-O {[%clk 0:04:06.4]} 13. b4 {[%clk 0:04:14.7]} 13... Rb6 {[%clk
0:03:57.7]} 14. Qa3 {[%clk 0:04:12.2]} 14... e5 {[%clk 0:03:52.3]} 15. dxe5
{[%clk 0:04:04.3]} 15... Nxe5 {[%clk 0:03:51.5]} 16. Be2 {[%clk 0:03:49.1]}
16... Nxf3+ {[%clk 0:03:33.3]} 17. gxf3 {[%clk 0:03:41.5]} 17... Bf5 {[%clk
0:03:04.9]} 18. O-O {[%clk 0:03:33.3]} 18... Qf4 {[%clk 0:02:55.1]} 19. Rfd1
{[%clk 0:03:23.1]} 19... Bh3 {[%clk 0:01:27.2]} 20. Nf1 {[%clk 0:03:00.8]} 20...
Re6 {[%clk 0:01:06.7]} 21. Qb2 {[%clk 0:02:37.8]} 21... Rfe8 {[%clk 0:01:04.9]}
22. Ng3 {[%clk 0:02:17.6]} 22... Rxe2 {[%clk 0:01:02.3]} 0-1

[Event "Live Chess"]
[Site "Chess.com"]
[Date "2023.05.21"]
[Round "-"]
[White "LL220284LL"]
[Black "domrobson"]
[Result "1-0"]
[WhiteElo "2289"]
[BlackElo "1766"]
[TimeControl "300"]
[EndTime "6:43:04 PDT"]
[Termination "LL220284LL won by resignation"]

1. b3 {[%clk 0:04:58.9]} 1... e5 {[%clk 0:04:59.3]} 2. Bb2 {[%clk 0:04:58.8]}
2... Nc6 {[%clk 0:04:58.4]} 3. Nf3 {[%clk 0:04:57.4]} 3... Nf6 {[%clk
0:04:58.1]} 4. Nxe5 {[%clk 0:04:55.7]} 4... d6 {[%clk 0:04:58]} 5. Nxc6 {[%clk
0:04:54.7]} 5... Be6 {[%clk 0:04:57.9]} 6. Nxd8 {[%clk 0:04:53.5]} 6... Kd7
{[%clk 0:04:56.2]} 7. Nxe6 {[%clk 0:04:52.6]} 7... Kxe6 {[%clk 0:04:54.9]} 8. g3
{[%clk 0:04:52.3]} 8... Kd5 {[%clk 0:04:53.5]} 9. Bh3 {[%clk 0:04:52.2]} 9...
Kc6 {[%clk 0:04:52.6]} 10. d4 {[%clk 0:04:51.5]} 10... Kd5 {[%clk 0:04:50.8]}
11. c4+ {[%clk 0:04:50.9]} 1-0

[Event "Live Chess"]
[Site "Chess.com"]
[Date "2023.05.21"]
[Round "-"]
[White "Leonid_Starozhilov"]
[Black "seabuck"]
[Result "1-0"]
[WhiteElo "2623"]
[BlackElo "1878"]
[TimeControl "300"]
[EndTime "6:43:09 PDT"]
[Termination "Leonid_Starozhilov won by checkmate"]

1. e4 {[%clk 0:04:56.6]} 1... e6 {[%clk 0:04:59]} 2. d4 {[%clk 0:04:55.3]} 2...
d5 {[%clk 0:04:57.9]} 3. Nc3 {[%clk 0:04:55.2]} 3... Nf6 {[%clk 0:04:54.8]} 4.
Bg5 {[%clk 0:04:54]} 4... Be7 {[%clk 0:04:53.3]} 5. e5 {[%clk 0:04:51.1]} 5...
Nfd7 {[%clk 0:04:51.8]} 6. h4 {[%clk 0:04:50.1]} 6... h6 {[%clk 0:04:50.7]} 7.
Bxe7 {[%clk 0:04:41.2]} 7... Qxe7 {[%clk 0:04:49.5]} 8. f4 {[%clk 0:04:40.9]}
8... a6 {[%clk 0:04:47.8]} 9. Nf3 {[%clk 0:04:40.1]} 9... c5 {[%clk 0:04:46.1]}
10. Qd2 {[%clk 0:04:38.4]} 10... Nc6 {[%clk 0:04:44.3]} 11. O-O-O {[%clk
0:04:37.1]} 11... b5 {[%clk 0:04:40.5]} 12. g4 {[%clk 0:04:36.2]} 12... b4
{[%clk 0:04:32.5]} 13. Ne2 {[%clk 0:04:33.4]} 13... c4 {[%clk 0:04:20.1]} 14. f5
{[%clk 0:04:29.6]} 14... exf5 {[%clk 0:04:16.5]} 15. gxf5 {[%clk 0:04:27.1]}
15... b3 {[%clk 0:04:03.8]} 16. cxb3 {[%clk 0:04:20.8]} 16... cxb3 {[%clk
0:04:02.6]} 17. a3 {[%clk 0:04:20.2]} 17... a5 {[%clk 0:03:57.1]} 18. Nf4 {[%clk
0:04:18.5]} 18... Nb6 {[%clk 0:03:46.5]} 19. Bd3 {[%clk 0:04:12.6]} 19... Ba6
{[%clk 0:03:39.5]} 20. Kb1 {[%clk 0:04:08.8]} 20... Bxd3+ {[%clk 0:03:37.9]} 21.
Qxd3 {[%clk 0:04:08.3]} 21... O-O {[%clk 0:03:24]} 22. f6 {[%clk 0:04:06.6]}
22... gxf6 {[%clk 0:03:13.3]} 23. Rhg1+ {[%clk 0:03:55.6]} 23... Kh8 {[%clk
0:03:11.8]} 24. Rg6 {[%clk 0:03:45.9]} 24... Nc4 {[%clk 0:02:41.6]} 25. Rxh6+
{[%clk 0:03:41.6]} 25... Kg7 {[%clk 0:02:39.9]} 26. Qh7# {[%clk 0:03:41.5]} 1-0